[Event "Early-Titled-Tuesday-Blitz-January-30-2024"]
[Site "Chess.com"]
[Date "2024.01.30"]
[Round "2"]
[White "Willhaven3"]
[Black "falzehope0"]
[Result "1-0"]
[WhiteElo "2619"]
[BlackElo "2373"]
[TimeControl "180+1"]
[EndTime "8:19:48 PST"]
[Termination "Willhaven3 won on time"]

1. d4 {[%clk 0:02:59.1]} 1... e6 {[%clk 0:02:56.5]} 2. Nf3 {[%clk 0:02:59]} 2...
d5 {[%clk 0:02:55.3]} 3. c4 {[%clk 0:02:59]} 3... c6 {[%clk 0:02:55.1]} 4. e3
{[%clk 0:02:58]} 4... Bd6 {[%clk 0:02:54.7]} 5. Nc3 {[%clk 0:02:57.5]} 5... f5
{[%clk 0:02:53.9]} 6. Ne5 {[%clk 0:02:56.4]} 6... Nf6 {[%clk 0:02:52.9]} 7. f4
{[%clk 0:02:56.5]} 7... O-O {[%clk 0:02:52.5]} 8. Bd3 {[%clk 0:02:56.5]} 8...
Ne4 {[%clk 0:02:44.8]} 9. O-O {[%clk 0:02:56.4]} 9... Nd7 {[%clk 0:02:38.2]} 10.
Bd2 {[%clk 0:02:55]} 10... g5 {[%clk 0:02:30.7]} 11. Be1 {[%clk 0:02:39.3]}
11... gxf4 {[%clk 0:02:28.8]} 12. exf4 {[%clk 0:02:38.7]} 12... Qf6 {[%clk
0:02:25.8]} 13. Qh5 {[%clk 0:02:26.8]} 13... Kh8 {[%clk 0:02:07.8]} 14. Bh4
{[%clk 0:02:13.2]} 14... Qg7 {[%clk 0:02:07.4]} 15. Rf3 {[%clk 0:02:05.7]} 15...
Ndf6 {[%clk 0:02:00.6]} 16. Bxf6 {[%clk 0:02:05.4]} 16... Rxf6 {[%clk
0:01:58.1]} 17. Bxe4 {[%clk 0:01:47.2]} 17... fxe4 {[%clk 0:01:50.2]} 18. Rg3
{[%clk 0:01:44.3]} 18... Bxe5 {[%clk 0:01:23]} 19. Rxg7 {[%clk 0:01:43.2]} 19...
Bxd4+ {[%clk 0:01:22.6]} 20. Kh1 {[%clk 0:01:38.7]} 20... Kxg7 {[%clk
0:01:22.9]} 21. Ne2 {[%clk 0:01:17.1]} 21... Bxb2 {[%clk 0:01:15.9]} 22. Rb1
{[%clk 0:01:17]} 22... Ba3 {[%clk 0:01:14.7]} 23. Qg5+ {[%clk 0:01:03.8]} 23...
Kf7 {[%clk 0:01:07.5]} 24. Ng3 {[%clk 0:00:54.8]} 24... Be7 {[%clk 0:00:54.8]}
25. Qh5+ {[%clk 0:00:49.6]} 25... Kg7 {[%clk 0:00:49.1]} 26. Qe8 {[%clk
0:00:45.9]} 26... Rf7 {[%clk 0:00:34.2]} 27. Nh5+ {[%clk 0:00:44.9]} 27... Kg6
{[%clk 0:00:33.9]} 28. Qg8+ {[%clk 0:00:43.9]} 28... Kxh5 {[%clk 0:00:33]} 29.
Qxf7+ {[%clk 0:00:43.4]} 29... Kh6 {[%clk 0:00:32]} 30. Qxe7 {[%clk 0:00:42.6]}
30... Kg6 {[%clk 0:00:30.4]} 31. g4 {[%clk 0:00:41.7]} 31... h6 {[%clk
0:00:29.2]} 32. h4 {[%clk 0:00:38.1]} 32... h5 {[%clk 0:00:28.5]} 33. Qg5+
{[%clk 0:00:37.3]} 33... Kf7 {[%clk 0:00:28.9]} 34. Qxh5+ {[%clk 0:00:37.3]}
34... Ke7 {[%clk 0:00:29.4]} 35. c5 {[%clk 0:00:34.8]} 35... b6 {[%clk
0:00:27.8]} 36. Qh7+ {[%clk 0:00:34.1]} 36... Kd8 {[%clk 0:00:27.5]} 37. Qg8+
{[%clk 0:00:32.9]} 37... Kc7 {[%clk 0:00:26.7]} 38. Qf7+ {[%clk 0:00:32.3]}
38... Bd7 {[%clk 0:00:27.1]} 39. h5 {[%clk 0:00:25.4]} 39... bxc5 {[%clk
0:00:23.2]} 40. h6 {[%clk 0:00:24.2]} 40... c4 {[%clk 0:00:17.5]} 41. Qf6 {[%clk
0:00:21.1]} 41... c5 {[%clk 0:00:15.6]} 42. h7 {[%clk 0:00:20.1]} 42... d4
{[%clk 0:00:15.2]} 43. h8=Q {[%clk 0:00:19.4]} 43... Rxh8+ {[%clk 0:00:14.4]}
44. Qxh8 {[%clk 0:00:19.9]} 44... Kc6 {[%clk 0:00:13.6]} 45. Qa8+ {[%clk
0:00:16.8]} 45... Kd6 {[%clk 0:00:13.5]} 46. Qb8+ {[%clk 0:00:16.4]} 46... Kd5
{[%clk 0:00:12.4]} 47. Qe5+ {[%clk 0:00:14.8]} 47... Kc6 {[%clk 0:00:12.8]} 48.
g5 {[%clk 0:00:10.8]} 48... e3 {[%clk 0:00:12.6]} 49. g6 {[%clk 0:00:10.4]}
49... c3 {[%clk 0:00:12.9]} 50. Rc1 {[%clk 0:00:07.8]} 50... Kb7 {[%clk
0:00:12]} 51. g7 {[%clk 0:00:08]} 51... Bc6+ {[%clk 0:00:12.7]} 52. Kh2 {[%clk
0:00:08.6]} 52... e2 {[%clk 0:00:13.1]} 53. g8=Q {[%clk 0:00:08]} 53... d3
{[%clk 0:00:12.7]} 54. Qgb8+ {[%clk 0:00:07.7]} 54... Ka6 {[%clk 0:00:13.3]} 55.
Qec7 {[%clk 0:00:07.7]} 1-0

[Event "Early-Titled-Tuesday-Blitz-January-30-2024"]
[Site "Chess.com"]
[Date "2024.01.30"]
[Round "2"]
[White "Anton_Demchenko"]
[Black "Crazy_girl99"]
[Result "1-0"]
[WhiteElo "2946"]
[BlackElo "2604"]
[TimeControl "180+1"]
[EndTime "8:19:51 PST"]
[Termination "Anton_Demchenko won by resignation"]

1. e4 {[%clk 0:03:00.9]} 1... e5 {[%clk 0:02:53.7]} 2. Nf3 {[%clk 0:03:00.3]}
2... Nc6 {[%clk 0:02:53.9]} 3. Bc4 {[%clk 0:03:00.5]} 3... Nf6 {[%clk
0:02:52.7]} 4. d3 {[%clk 0:03:00.8]} 4... Bc5 {[%clk 0:02:52.6]} 5. Bg5 {[%clk
0:03:00.2]} 5... h6 {[%clk 0:02:51.7]} 6. Bh4 {[%clk 0:03:00.9]} 6... g5 {[%clk
0:02:49.7]} 7. Bg3 {[%clk 0:03:01.2]} 7... d6 {[%clk 0:02:49.9]} 8. c3 {[%clk
0:03:00.8]} 8... Bb6 {[%clk 0:02:46.7]} 9. Nbd2 {[%clk 0:03:01.1]} 9... Qe7
{[%clk 0:02:46.7]} 10. a4 {[%clk 0:03:00.6]} 10... a5 {[%clk 0:02:45.6]} 11. O-O
{[%clk 0:02:59]} 11... O-O {[%clk 0:02:44.9]} 12. Re1 {[%clk 0:02:50.7]} 12...
Kg7 {[%clk 0:02:44.6]} 13. Bb5 {[%clk 0:02:46.4]} 13... Bg4 {[%clk 0:02:23.1]}
14. h3 {[%clk 0:02:33.6]} 14... Bh5 {[%clk 0:02:20]} 15. Qc2 {[%clk 0:02:27.2]}
15... Bg6 {[%clk 0:02:03.4]} 16. d4 {[%clk 0:02:27]} 16... exd4 {[%clk
0:01:47.8]} 17. Bxc6 {[%clk 0:02:24.2]} 17... bxc6 {[%clk 0:01:41.1]} 18. cxd4
{[%clk 0:02:15.2]} 18... c5 {[%clk 0:01:40.3]} 19. Qc3 {[%clk 0:02:05.9]} 19...
Kh7 {[%clk 0:01:28.6]} 20. e5 {[%clk 0:01:51]} 20... cxd4 {[%clk 0:01:17.1]} 21.
Nxd4 {[%clk 0:01:51.3]} 21... dxe5 {[%clk 0:01:08.9]} 22. Bxe5 {[%clk
0:01:45.3]} 22... Nd5 {[%clk 0:01:07.7]} 23. Qc4 {[%clk 0:01:27]} 23... Qd7
{[%clk 0:01:06.3]} 24. Ne4 {[%clk 0:01:04.6]} 24... Bxe4 {[%clk 0:00:53]} 25.
Rxe4 {[%clk 0:01:04.1]} 25... f6 {[%clk 0:00:34]} 26. Bh2 {[%clk 0:00:51.5]}
26... Rfe8 {[%clk 0:00:33.6]} 27. Qd3 {[%clk 0:00:34.2]} 27... Rxe4 {[%clk
0:00:06.4]} 28. Qxe4+ {[%clk 0:00:34]} 28... Kg7 {[%clk 0:00:05.9]} 29. Nf5+
{[%clk 0:00:33]} 29... Kf8 {[%clk 0:00:05.6]} 30. Nxh6 {[%clk 0:00:23.5]} 30...
Re8 {[%clk 0:00:05.6]} 31. Qf3 {[%clk 0:00:20.7]} 31... Kg7 {[%clk 0:00:01.5]}
32. Nf5+ {[%clk 0:00:20.3]} 32... Kf7 {[%clk 0:00:01.8]} 33. Rd1 {[%clk
0:00:18.8]} 33... c6 {[%clk 0:00:01.9]} 34. g4 {[%clk 0:00:18.2]} 34... Re6
{[%clk 0:00:01.1]} 35. h4 {[%clk 0:00:16.8]} 35... Qe8 {[%clk 0:00:01.8]} 36.
hxg5 {[%clk 0:00:15.6]} 36... Re2 {[%clk 0:00:02.4]} 37. Bg3 {[%clk 0:00:15.3]}
37... Re1+ {[%clk 0:00:02.4]} 38. Rxe1 {[%clk 0:00:15.4]} 38... Qxe1+ {[%clk
0:00:03.3]} 39. Kg2 {[%clk 0:00:16.3]} 39... fxg5 {[%clk 0:00:02.7]} 40. Nd4+
{[%clk 0:00:10.9]} 40... Ke8 {[%clk 0:00:02.2]} 41. Nxc6 {[%clk 0:00:10.9]}
41... Nf4+ {[%clk 0:00:02.6]} 42. Bxf4 {[%clk 0:00:11.2]} 42... gxf4 {[%clk
0:00:03.5]} 43. Qxf4 {[%clk 0:00:08.7]} 43... Qe2 {[%clk 0:00:04.1]} 44. Qe5+
{[%clk 0:00:08.7]} 44... Qxe5 {[%clk 0:00:04.4]} 45. Nxe5 {[%clk 0:00:09.6]}
45... Ke7 {[%clk 0:00:05.1]} 46. f4 {[%clk 0:00:08.5]} 46... Ke6 {[%clk
0:00:05.7]} 47. Kf3 {[%clk 0:00:08.2]} 47... Bd4 {[%clk 0:00:06.3]} 48. Nd3
{[%clk 0:00:08.4]} 48... Kd5 {[%clk 0:00:05.9]} 49. b3 {[%clk 0:00:09.1]} 49...
Bc3 {[%clk 0:00:06.4]} 50. g5 {[%clk 0:00:09]} 50... Kd4 {[%clk 0:00:07.3]} 51.
Ne5 {[%clk 0:00:09]} 51... Bb4 {[%clk 0:00:07]} 52. g6 {[%clk 0:00:08.4]} 52...
Bf8 {[%clk 0:00:07.3]} 53. Nc4 {[%clk 0:00:07.8]} 53... Kc3 {[%clk 0:00:06.2]}
54. Nxa5 {[%clk 0:00:08.4]} 54... Kb4 {[%clk 0:00:07.1]} 55. Nc6+ {[%clk
0:00:07.9]} 55... Kxb3 {[%clk 0:00:07.8]} 56. a5 {[%clk 0:00:08.6]} 1-0

[Event "Early-Titled-Tuesday-Blitz-January-30-2024"]
[Site "Chess.com"]
[Date "2024.01.30"]
[Round "2"]
[White "betta2004"]
[Black "hsd2016"]
[Result "0-1"]
[WhiteElo "2520"]
[BlackElo "2299"]
[TimeControl "180+1"]
[EndTime "8:19:51 PST"]
[Termination "hsd2016 won by checkmate"]

1. d4 {[%clk 0:02:48]} 1... d5 {[%clk 0:03:00]} 2. Nc3 {[%clk 0:02:02.6]} 2...
Nf6 {[%clk 0:02:57.5]} 3. Bf4 {[%clk 0:01:54.6]} 3... c5 {[%clk 0:02:56.4]} 4.
e3 {[%clk 0:01:38.8]} 4... Nc6 {[%clk 0:02:53.4]} 5. dxc5 {[%clk 0:01:33]} 5...
e5 {[%clk 0:02:44.7]} 6. Bg5 {[%clk 0:01:29.1]} 6... Be6 {[%clk 0:02:37.2]} 7.
a3 {[%clk 0:01:00.1]} 7... Bxc5 {[%clk 0:02:28.6]} 8. Bb5 {[%clk 0:00:59.2]}
8... O-O {[%clk 0:02:14.7]} 9. Nf3 {[%clk 0:00:57.4]} 9... a6 {[%clk 0:02:03.6]}
10. Bxc6 {[%clk 0:00:52.2]} 10... bxc6 {[%clk 0:02:04.5]} 11. Nxe5 {[%clk
0:00:52.9]} 11... Rc8 {[%clk 0:02:03.8]} 12. O-O {[%clk 0:00:52.5]} 12... h6
{[%clk 0:02:02.8]} 13. Bh4 {[%clk 0:00:52.6]} 13... Be7 {[%clk 0:02:01.5]} 14.
Bg3 {[%clk 0:00:51.1]} 14... Qb6 {[%clk 0:02:00.4]} 15. Na4 {[%clk 0:00:50.5]}
15... Qb5 {[%clk 0:01:58.6]} 16. c3 {[%clk 0:00:48.6]} 16... Ne4 {[%clk
0:01:58.8]} 17. Qc2 {[%clk 0:00:45.4]} 17... Nxg3 {[%clk 0:01:58.1]} 18. hxg3
{[%clk 0:00:46]} 18... Bf6 {[%clk 0:01:46.9]} 19. Nd3 {[%clk 0:00:46.1]} 19...
d4 {[%clk 0:01:45]} 20. exd4 {[%clk 0:00:44.1]} 20... Bb3 {[%clk 0:01:44.7]} 21.
Qd2 {[%clk 0:00:41.8]} 21... Qxa4 {[%clk 0:01:38.4]} 22. Nc5 {[%clk 0:00:42]}
22... Qb5 {[%clk 0:01:35.5]} 23. a4 {[%clk 0:00:42.1]} 23... Qc4 {[%clk
0:01:29.1]} 24. Ra3 {[%clk 0:00:40.3]} 24... Be7 {[%clk 0:01:24.1]} 25. Nxb3
{[%clk 0:00:29.3]} 25... Bxa3 {[%clk 0:01:21]} 26. Na5 {[%clk 0:00:29.9]} 26...
Qd5 {[%clk 0:01:19.8]} 27. c4 {[%clk 0:00:30.4]} 27... Qd6 {[%clk 0:01:06.7]}
28. bxa3 {[%clk 0:00:27.3]} 28... Qxa3 {[%clk 0:01:06.5]} 29. Qc2 {[%clk
0:00:23.2]} 29... Rfd8 {[%clk 0:01:01.6]} 30. Rd1 {[%clk 0:00:23]} 30... Qb4
{[%clk 0:00:55.2]} 31. Qd2 {[%clk 0:00:19]} 31... Qxa4 {[%clk 0:00:46.8]} 32.
Nb7 {[%clk 0:00:19.3]} 32... Qxc4 {[%clk 0:00:37.8]} 33. Nxd8 {[%clk 0:00:19]}
33... Rxd8 {[%clk 0:00:38.7]} 34. Qe3 {[%clk 0:00:14.5]} 34... a5 {[%clk
0:00:32.2]} 35. Kh2 {[%clk 0:00:12.8]} 35... a4 {[%clk 0:00:31.1]} 36. g4 {[%clk
0:00:13.2]} 36... Qd5 {[%clk 0:00:28.5]} 37. f3 {[%clk 0:00:13.1]} 37... c5
{[%clk 0:00:28.2]} 38. Qa3 {[%clk 0:00:12.2]} 38... cxd4 {[%clk 0:00:27.4]} 39.
Qxa4 {[%clk 0:00:12.8]} 39... d3 {[%clk 0:00:27.8]} 40. Rd2 {[%clk 0:00:13.4]}
40... Qe5+ {[%clk 0:00:26.6]} 41. Kh3 {[%clk 0:00:12.2]} 41... Qe1 {[%clk
0:00:24.9]} 42. Rd1 {[%clk 0:00:10.2]} 42... Qe2 {[%clk 0:00:21.8]} 43. Kg3
{[%clk 0:00:06.8]} 43... d2 {[%clk 0:00:20.8]} 44. Qc2 {[%clk 0:00:07]} 44...
Qe5+ {[%clk 0:00:20]} 45. Kf2 {[%clk 0:00:06.9]} 45... Qd4+ {[%clk 0:00:20.5]}
46. Ke2 {[%clk 0:00:05.9]} 46... Re8+ {[%clk 0:00:21]} 47. Kf1 {[%clk
0:00:06.6]} 47... Rd8 {[%clk 0:00:20.2]} 48. Ke2 {[%clk 0:00:06.7]} 48... Qe5+
{[%clk 0:00:19.5]} 49. Kf2 {[%clk 0:00:06.8]} 49... Qf4 {[%clk 0:00:17.2]} 50.
g3 {[%clk 0:00:06.3]} 50... Qd4+ {[%clk 0:00:17.2]} 51. Kg2 {[%clk 0:00:04.8]}
51... Qe3 {[%clk 0:00:16.7]} 52. f4 {[%clk 0:00:03]} 52... Qe2+ {[%clk
0:00:16.3]} 53. Kh3 {[%clk 0:00:03.7]} 53... h5 {[%clk 0:00:16]} 54. gxh5 {[%clk
0:00:03.6]} 54... Qxh5+ {[%clk 0:00:16]} 55. Kg2 {[%clk 0:00:04.5]} 55... Qe2+
{[%clk 0:00:16.7]} 56. Kh3 {[%clk 0:00:04.8]} 56... Rd5 {[%clk 0:00:15.5]} 57.
g4 {[%clk 0:00:04.3]} 57... Rd3+ {[%clk 0:00:15.1]} 58. Kh4 {[%clk 0:00:04.5]}
58... Qh2+ {[%clk 0:00:15.2]} 59. Kg5 {[%clk 0:00:05.1]} 59... Rd5+ {[%clk
0:00:15.3]} 60. f5 {[%clk 0:00:05.3]} 60... Qh6# {[%clk 0:00:16]} 0-1

[Event "Early-Titled-Tuesday-Blitz-January-30-2024"]
[Site "Chess.com"]
[Date "2024.01.30"]
[Round "2"]
[White "aa175"]
[Black "Hikaru"]
[Result "0-1"]
[WhiteElo "2681"]
[BlackElo "3303"]
[TimeControl "180+1"]
[EndTime "8:19:52 PST"]
[Termination "Hikaru won on time"]

1. d4 {[%clk 0:03:00.9]} 1... g6 {[%clk 0:02:56.8]} 2. e4 {[%clk 0:03:01.6]}
2... Bg7 {[%clk 0:02:55.9]} 3. Nc3 {[%clk 0:03:02.3]} 3... a6 {[%clk 0:02:55.8]}
4. a4 {[%clk 0:03:02]} 4... d6 {[%clk 0:02:56.2]} 5. f4 {[%clk 0:03:02.4]} 5...
Nc6 {[%clk 0:02:56.5]} 6. Be3 {[%clk 0:02:56]} 6... Nf6 {[%clk 0:02:56.7]} 7.
Be2 {[%clk 0:02:53.3]} 7... e5 {[%clk 0:02:54.7]} 8. dxe5 {[%clk 0:02:48.6]}
8... dxe5 {[%clk 0:02:55]} 9. Qxd8+ {[%clk 0:02:49.4]} 9... Nxd8 {[%clk
0:02:53.3]} 10. fxe5 {[%clk 0:02:49.6]} 10... Nd7 {[%clk 0:02:53.7]} 11. Nd5
{[%clk 0:02:16.6]} 11... Ne6 {[%clk 0:02:53.2]} 12. Nf3 {[%clk 0:02:16.8]} 12...
O-O {[%clk 0:02:40.1]} 13. O-O-O {[%clk 0:02:07.2]} 13... Nxe5 {[%clk
0:02:28.7]} 14. Nxe5 {[%clk 0:02:04]} 14... Bxe5 {[%clk 0:02:28.7]} 15. h4
{[%clk 0:01:40]} 15... Re8 {[%clk 0:01:37.9]} 16. h5 {[%clk 0:01:31.7]} 16... b6
{[%clk 0:01:36.1]} 17. hxg6 {[%clk 0:01:24.5]} 17... hxg6 {[%clk 0:01:35.7]} 18.
g4 {[%clk 0:00:58.9]} 18... Bb7 {[%clk 0:01:34.8]} 19. g5 {[%clk 0:00:59.5]}
19... Bxd5 {[%clk 0:01:33.2]} 20. exd5 {[%clk 0:00:50.3]} 20... Nf4 {[%clk
0:01:25.8]} 21. Bc4 {[%clk 0:00:27.1]} 21... Bxb2+ {[%clk 0:01:14.1]} 22. Kxb2
{[%clk 0:00:28]} 22... Rxe3 {[%clk 0:01:14.1]} 23. Rd4 {[%clk 0:00:28.8]} 23...
Nh5 {[%clk 0:01:04.3]} 24. d6 {[%clk 0:00:29.3]} 24... cxd6 {[%clk 0:01:01.1]}
25. Rxd6 {[%clk 0:00:29.4]} 25... Kg7 {[%clk 0:00:59.5]} 26. Rxb6 {[%clk
0:00:29.6]} 26... Rc8 {[%clk 0:00:40.7]} 27. Bb3 {[%clk 0:00:23.2]} 27... a5
{[%clk 0:00:37.3]} 28. Rf1 {[%clk 0:00:19.2]} 28... Rc7 {[%clk 0:00:37.3]} 29.
Rb5 {[%clk 0:00:18.2]} 29... Ra7 {[%clk 0:00:36.8]} 30. Rd1 {[%clk 0:00:08.5]}
30... Re8 {[%clk 0:00:32.4]} 31. Rd6 {[%clk 0:00:08.1]} 31... Ng3 {[%clk
0:00:31.1]} 32. Rdd5 {[%clk 0:00:08.1]} 32... Rea8 {[%clk 0:00:31]} 33. Rd6
{[%clk 0:00:08.2]} 33... Nf5 {[%clk 0:00:29.8]} 34. Rf6 {[%clk 0:00:07.5]} 34...
Rc7 {[%clk 0:00:21.5]} 35. Rfb6 {[%clk 0:00:06.2]} 35... Raa7 {[%clk 0:00:20.9]}
36. Rb8 {[%clk 0:00:06]} 36... Nd4 {[%clk 0:00:18.6]} 37. Rd5 {[%clk 0:00:06.1]}
37... Ne6 {[%clk 0:00:19.2]} 38. Re5 {[%clk 0:00:05.6]} 38... Rc5 {[%clk
0:00:19.4]} 39. Rxc5 {[%clk 0:00:02.7]} 39... Nxc5 {[%clk 0:00:20.3]} 40. Rb5
{[%clk 0:00:02.8]} 40... Ne4 {[%clk 0:00:20.6]} 41. c4 {[%clk 0:00:02]} 41...
Kf8 {[%clk 0:00:18.3]} 42. Kc2 {[%clk 0:00:02.5]} 42... Rd7 {[%clk 0:00:17.3]}
43. Rxa5 {[%clk 0:00:02]} 43... Rd2+ {[%clk 0:00:18]} 44. Kc1 {[%clk 0:00:02.5]}
44... Rg2 {[%clk 0:00:18.9]} 45. Bc2 {[%clk 0:00:01.9]} 45... Nxg5 {[%clk
0:00:18.4]} 46. c5 {[%clk 0:00:02.5]} 46... Ne6 {[%clk 0:00:18.6]} 47. c6 {[%clk
0:00:03.2]} 47... Ke7 {[%clk 0:00:17.2]} 48. Rd5 {[%clk 0:00:03.8]} 48... Rg4
{[%clk 0:00:15.4]} 49. Rd7+ {[%clk 0:00:02.9]} 49... Kf6 {[%clk 0:00:16]} 50. c7
{[%clk 0:00:02.8]} 50... Rc4 {[%clk 0:00:16.5]} 51. a5 {[%clk 0:00:01.9]} 51...
Rxc7 {[%clk 0:00:07.7]} 52. Rxc7 {[%clk 0:00:02.2]} 52... Nxc7 {[%clk
0:00:08.6]} 53. Bd3 {[%clk 0:00:02.7]} 53... Ke5 {[%clk 0:00:06.8]} 54. a6
{[%clk 0:00:02.7]} 54... Kd4 {[%clk 0:00:07.5]} 55. Be2 {[%clk 0:00:02.1]} 55...
Ke3 {[%clk 0:00:07.8]} 56. Bc4 {[%clk 0:00:01.2]} 56... f5 {[%clk 0:00:08.5]}
57. a7 {[%clk 0:00:01.4]} 57... g5 {[%clk 0:00:09.2]} 58. Kd1 {[%clk 0:00:01.5]}
58... Kf2 {[%clk 0:00:09.6]} 59. Bd5 {[%clk 0:00:01.3]} 59... g4 {[%clk
0:00:09.3]} 60. Kd2 {[%clk 0:00:01.7]} 60... f4 {[%clk 0:00:09.3]} 0-1

[Event "Early-Titled-Tuesday-Blitz-January-30-2024"]
[Site "Chess.com"]
[Date "2024.01.30"]
[Round "2"]
[White "CristianS27"]
[Black "HamedWafa4"]
[Result "0-1"]
[WhiteElo "2555"]
[BlackElo "2810"]
[TimeControl "180+1"]
[EndTime "8:19:52 PST"]
[Termination "HamedWafa4 won by resignation"]

1. e4 {[%clk 0:03:00.9]} 1... e5 {[%clk 0:02:55.8]} 2. Nf3 {[%clk 0:03:01.3]}
2... Nc6 {[%clk 0:02:55.3]} 3. Bc4 {[%clk 0:03:01.8]} 3... Bc5 {[%clk
0:02:55.1]} 4. c3 {[%clk 0:02:59.1]} 4... Nf6 {[%clk 0:02:55.1]} 5. d4 {[%clk
0:02:59.2]} 5... exd4 {[%clk 0:02:56]} 6. cxd4 {[%clk 0:03:00.1]} 6... Bb4+
{[%clk 0:02:56]} 7. Nc3 {[%clk 0:03:00.7]} 7... Nxe4 {[%clk 0:02:55.6]} 8. O-O
{[%clk 0:03:01.2]} 8... Bxc3 {[%clk 0:02:55]} 9. d5 {[%clk 0:03:01.8]} 9... Ne5
{[%clk 0:02:52.8]} 10. bxc3 {[%clk 0:03:02.2]} 10... Nxc4 {[%clk 0:02:52.9]} 11.
Qd4 {[%clk 0:03:02.9]} 11... O-O {[%clk 0:02:53.2]} 12. Qxe4 {[%clk 0:03:03.2]}
12... Nd6 {[%clk 0:02:53.1]} 13. Qd3 {[%clk 0:03:03.9]} 13... b5 {[%clk
0:02:46.1]} 14. Re1 {[%clk 0:03:03.8]} 14... Qf6 {[%clk 0:02:37.9]} 15. Bg5
{[%clk 0:03:04.4]} 15... Qf5 {[%clk 0:02:37.2]} 16. Qxf5 {[%clk 0:03:03.9]}
16... Nxf5 {[%clk 0:02:38.1]} 17. g4 {[%clk 0:03:04.8]} 17... Nd6 {[%clk
0:02:36.9]} 18. Be7 {[%clk 0:03:04.9]} 18... Bb7 {[%clk 0:02:33.4]} 19. Bxf8
{[%clk 0:03:02.8]} 19... Kxf8 {[%clk 0:02:34.3]} 20. Rad1 {[%clk 0:02:58.7]}
20... a6 {[%clk 0:02:29.7]} 21. Ne5 {[%clk 0:02:50.5]} 21... Rd8 {[%clk
0:02:27.3]} 22. Rd4 {[%clk 0:02:42.3]} 22... f6 {[%clk 0:02:25.5]} 23. Nd3
{[%clk 0:02:42.5]} 23... Nc4 {[%clk 0:02:21.1]} 24. Nc5 {[%clk 0:02:35.7]} 24...
Bc8 {[%clk 0:02:21.3]} 25. f4 {[%clk 0:02:23.3]} 25... Kf7 {[%clk 0:01:57.6]}
26. Rde4 {[%clk 0:02:19.7]} 26... Nb6 {[%clk 0:01:49.7]} 27. Re7+ {[%clk
0:01:53.4]} 27... Kf8 {[%clk 0:01:48.9]} 28. d6 {[%clk 0:01:20.2]} 28... cxd6
{[%clk 0:01:43.2]} 29. Nb3 {[%clk 0:01:16.7]} 29... Nd5 {[%clk 0:01:41.2]} 30.
R7e4 {[%clk 0:01:07.8]} 30... Nxc3 {[%clk 0:01:32.6]} 31. Rd4 {[%clk 0:01:08.1]}
31... d5 {[%clk 0:01:27.8]} 32. Re3 {[%clk 0:00:55.7]} 32... Na4 {[%clk
0:01:27.2]} 33. Rxd5 {[%clk 0:00:52.9]} 33... Nb6 {[%clk 0:01:26.9]} 34. Rc5
{[%clk 0:00:47.3]} 34... d6 {[%clk 0:01:20]} 35. Rc7 {[%clk 0:00:47.2]} 35...
Nd5 {[%clk 0:01:19.9]} 36. Rxc8 {[%clk 0:00:43.5]} 36... Rxc8 {[%clk 0:01:20.8]}
37. Rd3 {[%clk 0:00:44.1]} 37... Nxf4 {[%clk 0:01:15]} 38. Rxd6 {[%clk
0:00:44.5]} 38... Ra8 {[%clk 0:01:12.8]} 39. Kf2 {[%clk 0:00:41.4]} 39... Ke7
{[%clk 0:01:11.4]} 40. Rb6 {[%clk 0:00:40.6]} 40... Ne6 {[%clk 0:01:10.4]} 41.
Rb7+ {[%clk 0:00:39]} 41... Kd6 {[%clk 0:01:09.8]} 42. Na5 {[%clk 0:00:35.3]}
42... Nc7 {[%clk 0:01:05.2]} 43. Rb6+ {[%clk 0:00:33.9]} 43... Kd7 {[%clk
0:01:04.3]} 44. Nb7 {[%clk 0:00:32.9]} 44... a5 {[%clk 0:00:44.3]} 45. Nc5+
{[%clk 0:00:30.7]} 45... Ke7 {[%clk 0:00:43.3]} 46. Kf3 {[%clk 0:00:24.3]} 46...
b4 {[%clk 0:00:42.3]} 47. Ke4 {[%clk 0:00:24.1]} 47... Ra7 {[%clk 0:00:39.2]}
48. h4 {[%clk 0:00:21.7]} 48... Ne8 {[%clk 0:00:38.8]} 49. Kd5 {[%clk
0:00:19.9]} 49... g6 {[%clk 0:00:36.9]} 50. Kc6 {[%clk 0:00:17.2]} 50... Rc7+
{[%clk 0:00:35]} 51. Kd5 {[%clk 0:00:09.5]} 51... Ra7 {[%clk 0:00:35.1]} 52. Kc6
{[%clk 0:00:09.5]} 52... f5 {[%clk 0:00:35.5]} 53. gxf5 {[%clk 0:00:09.4]} 53...
gxf5 {[%clk 0:00:36.4]} 54. Kb5 {[%clk 0:00:09.9]} 54... f4 {[%clk 0:00:34]} 55.
Nd3 {[%clk 0:00:08.2]} 55... f3 {[%clk 0:00:32.5]} 56. Ra6 {[%clk 0:00:08.5]}
56... Rd7 {[%clk 0:00:27.9]} 57. Nf2 {[%clk 0:00:04.6]} 57... Rd5+ {[%clk
0:00:28.2]} 58. Kc4 {[%clk 0:00:04.4]} 58... Rd2 {[%clk 0:00:28.4]} 59. Ra7+
{[%clk 0:00:04.7]} 59... Ke6 {[%clk 0:00:27.6]} 60. Ne4 {[%clk 0:00:04.9]} 60...
Nd6+ {[%clk 0:00:25.8]} 61. Nxd6 {[%clk 0:00:04.6]} 61... Rxd6 {[%clk
0:00:26.4]} 0-1